[Event "Late-Titled-Tuesday-Blitz-January-30-2024"]
[Site "Chess.com"]
[Date "2024.01.30"]
[Round "3"]
[White "K_A_S_T_O_R"]
[Black "Korchmar_Vasiliy"]
[Result "0-1"]
[WhiteElo "2908"]
[BlackElo "2720"]
[TimeControl "180+1"]
[EndTime "14:30:29 PST"]
[Termination "Korchmar_Vasiliy won on time"]

1. e4 {[%clk 0:03:00.9]} 1... c5 {[%clk 0:03:00.4]} 2. Nf3 {[%clk 0:03:00.4]}
2... a6 {[%clk 0:03:01]} 3. c4 {[%clk 0:02:53.8]} 3... Nc6 {[%clk 0:02:59.6]} 4.
d4 {[%clk 0:02:53.6]} 4... cxd4 {[%clk 0:03:00.5]} 5. Nxd4 {[%clk 0:02:54.2]}
5... Nf6 {[%clk 0:03:00.1]} 6. Nc3 {[%clk 0:02:52.4]} 6... Qc7 {[%clk
0:03:00.5]} 7. Be3 {[%clk 0:02:49.6]} 7... e6 {[%clk 0:02:59.1]} 8. a3 {[%clk
0:02:46.9]} 8... b6 {[%clk 0:02:42.6]} 9. Rc1 {[%clk 0:02:28.1]} 9... Nxd4
{[%clk 0:02:42.4]} 10. Bxd4 {[%clk 0:02:17.8]} 10... Bb7 {[%clk 0:02:34.6]} 11.
Qd3 {[%clk 0:02:17.3]} 11... Bc5 {[%clk 0:02:16.9]} 12. Rd1 {[%clk 0:02:12.4]}
12... Rd8 {[%clk 0:01:10.5]} 13. Be2 {[%clk 0:02:03.6]} 13... d5 {[%clk
0:01:07.8]} 14. cxd5 {[%clk 0:01:52.2]} 14... Bxd4 {[%clk 0:00:57.9]} 15. Qxd4
{[%clk 0:01:49.9]} 15... exd5 {[%clk 0:00:58.4]} 16. e5 {[%clk 0:01:45.1]} 16...
Ne4 {[%clk 0:00:46.3]} 17. Rc1 {[%clk 0:01:04.6]} 17... O-O {[%clk 0:00:39.1]}
18. O-O {[%clk 0:01:03.4]} 18... Qc5 {[%clk 0:00:13.1]} 19. Nb5 {[%clk
0:00:50.4]} 19... Qe7 {[%clk 0:00:05.6]} 20. Rc7 {[%clk 0:00:43]} 20... Rd7
{[%clk 0:00:05.7]} 21. Rxd7 {[%clk 0:00:41.9]} 21... Qxd7 {[%clk 0:00:06.6]} 22.
Nc3 {[%clk 0:00:37.9]} 22... Nc5 {[%clk 0:00:06.8]} 23. Rd1 {[%clk 0:00:33.2]}
23... Qe6 {[%clk 0:00:02.4]} 24. Nxd5 {[%clk 0:00:20.4]} 24... Bxd5 {[%clk
0:00:01.9]} 25. Qxd5 {[%clk 0:00:20.3]} 25... Qg6 {[%clk 0:00:02.2]} 26. b4
{[%clk 0:00:18.2]} 26... Ne6 {[%clk 0:00:02.6]} 27. Qf3 {[%clk 0:00:16.5]} 27...
Qc2 {[%clk 0:00:01]} 28. Qe3 {[%clk 0:00:16.8]} 28... Qb2 {[%clk 0:00:01.2]} 29.
g3 {[%clk 0:00:16.1]} 29... a5 {[%clk 0:00:01.7]} 30. bxa5 {[%clk 0:00:15.5]}
30... bxa5 {[%clk 0:00:02.6]} 31. Rd6 {[%clk 0:00:15.7]} 31... Qa1+ {[%clk
0:00:02.5]} 32. Kg2 {[%clk 0:00:15.5]} 32... h6 {[%clk 0:00:03]} 33. Bc4 {[%clk
0:00:15.7]} 33... Qb2 {[%clk 0:00:02.7]} 34. Bxe6 {[%clk 0:00:15.4]} 34... fxe6
{[%clk 0:00:03.4]} 35. h4 {[%clk 0:00:15.5]} 35... Qb7+ {[%clk 0:00:03.9]} 36.
Kg1 {[%clk 0:00:14.7]} 36... Qb1+ {[%clk 0:00:03.9]} 37. Kh2 {[%clk 0:00:14.8]}
37... Qb2 {[%clk 0:00:04]} 38. Rd2 {[%clk 0:00:15.3]} 38... Qb7 {[%clk
0:00:03.1]} 39. Qd3 {[%clk 0:00:13.9]} 39... Qa7 {[%clk 0:00:02.7]} 40. Kg2
{[%clk 0:00:13.4]} 40... a4 {[%clk 0:00:03.2]} 41. f3 {[%clk 0:00:13.8]} 41...
Qb7 {[%clk 0:00:03.1]} 42. Re2 {[%clk 0:00:13.9]} 42... Kh8 {[%clk 0:00:02.6]}
43. Qe4 {[%clk 0:00:14.1]} 43... Qa7 {[%clk 0:00:02.7]} 44. g4 {[%clk
0:00:13.6]} 44... Qa6 {[%clk 0:00:03]} 45. h5 {[%clk 0:00:13.7]} 45... Qb5
{[%clk 0:00:02.6]} 46. Qe3 {[%clk 0:00:13.4]} 46... Qa6 {[%clk 0:00:02.1]} 47.
Rd2 {[%clk 0:00:13.7]} 47... Qb5 {[%clk 0:00:02.2]} 48. Qe2 {[%clk 0:00:12.9]}
48... Qb3 {[%clk 0:00:02.2]} 49. Rd3 {[%clk 0:00:13.5]} 49... Qc4 {[%clk
0:00:02.3]} 50. Re3 {[%clk 0:00:14.1]} 50... Qc5 {[%clk 0:00:02.1]} 51. Qd3
{[%clk 0:00:12.2]} 51... Qc1 {[%clk 0:00:01.9]} 52. Re2 {[%clk 0:00:12.1]} 52...
Qc5 {[%clk 0:00:01.9]} 53. Qe4 {[%clk 0:00:12.5]} 53... Qb5 {[%clk 0:00:01.9]}
54. Rc2 {[%clk 0:00:11.7]} 54... Qb3 {[%clk 0:00:01.9]} 55. Rf2 {[%clk 0:00:07]}
55... Qxa3 {[%clk 0:00:02]} 56. Qc4 {[%clk 0:00:07.7]} 56... Qb3 {[%clk
0:00:02]} 57. Qc5 {[%clk 0:00:07.4]} 57... Rb8 {[%clk 0:00:02]} 58. Qd6 {[%clk
0:00:07.3]} 58... a3 {[%clk 0:00:02.4]} 59. Qa6 {[%clk 0:00:06.6]} 59... Rb6
{[%clk 0:00:02.2]} 60. Qa8+ {[%clk 0:00:06.6]} 60... Rb8 {[%clk 0:00:02.8]} 61.
Qa6 {[%clk 0:00:05.9]} 61... Rb6 {[%clk 0:00:03]} 62. Qa5 {[%clk 0:00:06.1]}
62... Rb5 {[%clk 0:00:03.3]} 63. Qd8+ {[%clk 0:00:05.6]} 63... Kh7 {[%clk
0:00:04]} 64. Qd2 {[%clk 0:00:06.4]} 64... Rb8 {[%clk 0:00:03.3]} 65. Re2 {[%clk
0:00:06.3]} 65... Ra8 {[%clk 0:00:03.5]} 66. Qa2 {[%clk 0:00:06.3]} 66... Qb4
{[%clk 0:00:03.3]} 67. Re4 {[%clk 0:00:05.2]} 67... Qc5 {[%clk 0:00:03]} 68. Re2
{[%clk 0:00:05]} 68... Kh8 {[%clk 0:00:03.4]} 69. Qb1 {[%clk 0:00:05.2]} 69...
Qc4 {[%clk 0:00:03]} 70. Qa2 {[%clk 0:00:05.2]} 70... Qxe2+ {[%clk 0:00:03.2]}
71. Qxe2 {[%clk 0:00:04.4]} 71... a2 {[%clk 0:00:04.1]} 72. Qe4 {[%clk
0:00:04.3]} 72... a1=Q {[%clk 0:00:04.4]} 73. g5 {[%clk 0:00:04.8]} 73... Qa2+
{[%clk 0:00:03.8]} 74. Kg3 {[%clk 0:00:04.4]} 74... hxg5 {[%clk 0:00:04.1]} 75.
Qg6 {[%clk 0:00:04.3]} 75... Qa1 {[%clk 0:00:03.3]} 0-1

[Event "Late-Titled-Tuesday-Blitz-January-30-2024"]
[Site "Chess.com"]
[Date "2024.01.30"]
[Round "3"]
[White "AndreyNeves"]
[Black "jcmesafischer"]
[Result "0-1"]
[WhiteElo "2067"]
[BlackElo "2355"]
[TimeControl "180+1"]
[EndTime "14:30:30 PST"]
[Termination "jcmesafischer won by checkmate"]

1. d4 {[%clk 0:03:00.9]} 1... Nf6 {[%clk 0:02:54.4]} 2. c4 {[%clk 0:03:00.2]}
2... e6 {[%clk 0:02:52.4]} 3. Nf3 {[%clk 0:03:00.2]} 3... d5 {[%clk 0:02:49.4]}
4. g3 {[%clk 0:02:59.6]} 4... Be7 {[%clk 0:02:47.7]} 5. Bg2 {[%clk 0:02:59.4]}
5... O-O {[%clk 0:02:44.2]} 6. O-O {[%clk 0:02:59.9]} 6... dxc4 {[%clk
0:02:44.8]} 7. Qc2 {[%clk 0:02:58.1]} 7... a6 {[%clk 0:02:45]} 8. a4 {[%clk
0:02:58.2]} 8... Bd7 {[%clk 0:02:42.2]} 9. Qxc4 {[%clk 0:02:58.1]} 9... Bc6
{[%clk 0:02:42.8]} 10. Bg5 {[%clk 0:02:51.7]} 10... Bd5 {[%clk 0:02:42.5]} 11.
Qc2 {[%clk 0:02:49.2]} 11... Be4 {[%clk 0:02:42.6]} 12. Qd2 {[%clk 0:02:39.8]}
12... Nc6 {[%clk 0:02:36.8]} 13. e3 {[%clk 0:02:32.4]} 13... Bb4 {[%clk
0:02:31.7]} 14. Nc3 {[%clk 0:02:31.4]} 14... Bxc3 {[%clk 0:02:27.6]} 15. bxc3
{[%clk 0:02:29.3]} 15... Qd5 {[%clk 0:02:26.9]} 16. Bxf6 {[%clk 0:02:21.2]}
16... Bxf3 {[%clk 0:02:25.8]} 17. Bxf3 {[%clk 0:02:01.3]} 17... Qxf3 {[%clk
0:02:26.7]} 18. Bg5 {[%clk 0:02:00.9]} 18... f6 {[%clk 0:02:16.7]} 19. Bf4
{[%clk 0:01:59.3]} 19... e5 {[%clk 0:02:16.6]} 20. d5 {[%clk 0:01:33.3]} 20...
Na5 {[%clk 0:01:48.1]} 21. d6 {[%clk 0:01:12.5]} 21... Nb3 {[%clk 0:01:46.3]}
22. Qa2 {[%clk 0:01:10.3]} 22... Qd5 {[%clk 0:01:32]} 23. Rab1 {[%clk
0:01:05.6]} 23... exf4 {[%clk 0:01:25.6]} 24. Qxb3 {[%clk 0:01:00.4]} 24... Qxb3
{[%clk 0:01:19.5]} 25. Rxb3 {[%clk 0:01:01.3]} 25... fxe3 {[%clk 0:01:19]} 26.
dxc7 {[%clk 0:00:53.6]} 26... exf2+ {[%clk 0:01:16.3]} 27. Kxf2 {[%clk
0:00:51.5]} 27... b5 {[%clk 0:00:53.1]} 28. axb5 {[%clk 0:00:48.1]} 28... axb5
{[%clk 0:00:54]} 29. Rxb5 {[%clk 0:00:48]} 29... Rac8 {[%clk 0:00:53.3]} 30. Rb7
{[%clk 0:00:32.8]} 30... Rf7 {[%clk 0:00:52.7]} 31. Rc1 {[%clk 0:00:30]} 31...
Rfxc7 {[%clk 0:00:52.5]} 32. Rxc7 {[%clk 0:00:30.1]} 32... Rxc7 {[%clk
0:00:53.4]} 33. c4 {[%clk 0:00:30.5]} 33... Kf7 {[%clk 0:00:53.8]} 34. Ke3
{[%clk 0:00:30.6]} 34... Rd7 {[%clk 0:00:46.8]} 35. c5 {[%clk 0:00:26.4]} 35...
Ke6 {[%clk 0:00:46.7]} 36. c6 {[%clk 0:00:25.8]} 36... Rc7 {[%clk 0:00:47]} 37.
Ke4 {[%clk 0:00:21.8]} 37... g6 {[%clk 0:00:41.9]} 38. g4 {[%clk 0:00:21]} 38...
Kd6 {[%clk 0:00:41.7]} 39. Rf1 {[%clk 0:00:16.1]} 39... Rf7 {[%clk 0:00:30.3]}
40. Rc1 {[%clk 0:00:14.1]} 40... Re7+ {[%clk 0:00:25.8]} 41. Kf4 {[%clk
0:00:13.1]} 41... Rc7 {[%clk 0:00:25.6]} 42. h4 {[%clk 0:00:10.3]} 42... Rxc6
{[%clk 0:00:25.2]} 43. Rd1+ {[%clk 0:00:09.7]} 43... Ke6 {[%clk 0:00:24.7]} 44.
Re1+ {[%clk 0:00:09.2]} 44... Kf7 {[%clk 0:00:24.6]} 45. Re4 {[%clk 0:00:09.6]}
45... Re6 {[%clk 0:00:23.8]} 46. Ra4 {[%clk 0:00:09.3]} 46... Re7 {[%clk
0:00:23.9]} 47. Ra6 {[%clk 0:00:08.7]} 47... h6 {[%clk 0:00:23.9]} 48. Rb6
{[%clk 0:00:07.1]} 48... g5+ {[%clk 0:00:22.8]} 49. hxg5 {[%clk 0:00:06.6]}
49... hxg5+ {[%clk 0:00:23.7]} 50. Kf3 {[%clk 0:00:06]} 50... Ra7 {[%clk
0:00:22.8]} 51. Rb3 {[%clk 0:00:04.6]} 51... Ra6 {[%clk 0:00:22]} 52. Rb7+
{[%clk 0:00:04.4]} 52... Ke6 {[%clk 0:00:22.1]} 53. Rb3 {[%clk 0:00:04.8]} 53...
Ra4 {[%clk 0:00:21.5]} 54. Re3+ {[%clk 0:00:04.7]} 54... Kd5 {[%clk 0:00:20.6]}
55. Rd3+ {[%clk 0:00:05.3]} 55... Rd4 {[%clk 0:00:20.3]} 56. Re3 {[%clk
0:00:04.6]} 56... Rf4+ {[%clk 0:00:18.7]} 57. Kg3 {[%clk 0:00:05]} 57... Re4
{[%clk 0:00:18.9]} 58. Rf3 {[%clk 0:00:04.9]} 58... Ke5 {[%clk 0:00:18.4]} 59.
Rf5+ {[%clk 0:00:05.2]} 59... Ke6 {[%clk 0:00:18.8]} 60. Rf3 {[%clk 0:00:06.1]}
60... Rd4 {[%clk 0:00:16.2]} 61. Rb3 {[%clk 0:00:06.5]} 61... Ke5 {[%clk
0:00:16.3]} 62. Rb6 {[%clk 0:00:05.7]} 62... Rd6 {[%clk 0:00:15.7]} 63. Rb5+
{[%clk 0:00:05.7]} 63... Ke4 {[%clk 0:00:15.7]} 64. Rf5 {[%clk 0:00:05.8]} 64...
Rd3+ {[%clk 0:00:15.2]} 65. Kg2 {[%clk 0:00:06.1]} 65... Rd6 {[%clk 0:00:15.5]}
66. Kg3 {[%clk 0:00:05.7]} 66... Re6 {[%clk 0:00:15.4]} 67. Rf1 {[%clk
0:00:05.1]} 67... Kd4 {[%clk 0:00:14.3]} 68. Rd1+ {[%clk 0:00:03.8]} 68... Kc5
{[%clk 0:00:14.3]} 69. Rf1 {[%clk 0:00:04.3]} 69... Kd5 {[%clk 0:00:13.8]} 70.
Rf5+ {[%clk 0:00:05.2]} 70... Ke4 {[%clk 0:00:12.8]} 71. Rf1 {[%clk 0:00:04.6]}
71... Rd6 {[%clk 0:00:13.3]} 72. Re1+ {[%clk 0:00:04]} 72... Kd5 {[%clk
0:00:14]} 73. Rf1 {[%clk 0:00:04]} 73... Ke6 {[%clk 0:00:12.9]} 74. Re1+ {[%clk
0:00:03.7]} 74... Kf7 {[%clk 0:00:12.6]} 75. Re3 {[%clk 0:00:04.5]} 75... Rd4
{[%clk 0:00:12.6]} 76. Kf3 {[%clk 0:00:04.2]} 76... Kg6 {[%clk 0:00:12.7]} 77.
Kg3 {[%clk 0:00:04.6]} 77... f5 {[%clk 0:00:12.4]} 78. gxf5+ {[%clk 0:00:03.7]}
78... Kxf5 {[%clk 0:00:13.3]} 79. Ra3 {[%clk 0:00:03.8]} 79... Rd5 {[%clk
0:00:13.2]} 80. Ra8 {[%clk 0:00:03.5]} 80... Rd3+ {[%clk 0:00:11.9]} 81. Kf2
{[%clk 0:00:02.9]} 81... Kg4 {[%clk 0:00:12]} 82. Rf8 {[%clk 0:00:03.2]} 82...
Rd2+ {[%clk 0:00:10.9]} 83. Kg1 {[%clk 0:00:02.5]} 83... Kg3 {[%clk 0:00:11.1]}
84. Rg8 {[%clk 0:00:02.5]} 84... Rd1# {[%clk 0:00:10.3]} 0-1

[Event "Late-Titled-Tuesday-Blitz-January-30-2024"]
[Site "Chess.com"]
[Date "2024.01.30"]
[Round "3"]
[White "Szparu"]
[Black "DenLaz"]
[Result "0-1"]
[WhiteElo "2779"]
[BlackElo "3045"]
[TimeControl "180+1"]
[EndTime "14:30:32 PST"]
[Termination "DenLaz won by checkmate"]

1. e4 {[%clk 0:03:00.9]} 1... c5 {[%clk 0:02:58.5]} 2. c3 {[%clk 0:03:00.5]}
2... d5 {[%clk 0:02:58.4]} 3. exd5 {[%clk 0:03:00.7]} 3... Qxd5 {[%clk
0:02:59.2]} 4. d4 {[%clk 0:03:01.2]} 4... Nf6 {[%clk 0:02:59.8]} 5. Nf3 {[%clk
0:03:01.5]} 5... e6 {[%clk 0:03:00.4]} 6. Na3 {[%clk 0:03:00.7]} 6... a6 {[%clk
0:03:01]} 7. Nc4 {[%clk 0:02:58.5]} 7... Nbd7 {[%clk 0:03:01.5]} 8. Be2 {[%clk
0:02:54.7]} 8... b5 {[%clk 0:02:59.3]} 9. Ne3 {[%clk 0:02:54.3]} 9... Qc6 {[%clk
0:02:57.9]} 10. O-O {[%clk 0:02:47.8]} 10... Bb7 {[%clk 0:02:56.4]} 11. a4
{[%clk 0:02:40.7]} 11... Be7 {[%clk 0:02:53.8]} 12. axb5 {[%clk 0:02:39.9]}
12... axb5 {[%clk 0:02:54.7]} 13. Rxa8+ {[%clk 0:02:40.2]} 13... Bxa8 {[%clk
0:02:54.9]} 14. dxc5 {[%clk 0:02:40.9]} 14... Bxc5 {[%clk 0:02:53.7]} 15. Nc2
{[%clk 0:02:40.3]} 15... O-O {[%clk 0:02:42.9]} 16. Be3 {[%clk 0:02:27.5]} 16...
Bxe3 {[%clk 0:02:31.7]} 17. Nxe3 {[%clk 0:02:27.3]} 17... Qb6 {[%clk 0:02:24.9]}
18. Qd4 {[%clk 0:02:24.9]} 18... Rb8 {[%clk 0:02:15.8]} 19. Rd1 {[%clk
0:02:05.9]} 19... Qc7 {[%clk 0:01:52]} 20. Qd6 {[%clk 0:02:03.3]} 20... Qxd6
{[%clk 0:01:46.3]} 21. Rxd6 {[%clk 0:02:04.2]} 21... Kf8 {[%clk 0:01:46.5]} 22.
Ra6 {[%clk 0:01:35.6]} 22... b4 {[%clk 0:01:41]} 23. cxb4 {[%clk 0:01:04.2]}
23... Bxf3 {[%clk 0:01:39.8]} 24. Bxf3 {[%clk 0:01:05.1]} 24... Rxb4 {[%clk
0:01:40.1]} 25. Ra2 {[%clk 0:01:05.6]} 25... Ne5 {[%clk 0:01:36.8]} 26. Be2
{[%clk 0:01:03.5]} 26... g5 {[%clk 0:01:27.8]} 27. g3 {[%clk 0:01:01.1]} 27...
h6 {[%clk 0:01:15]} 28. Kg2 {[%clk 0:01:00.7]} 28... Ne4 {[%clk 0:01:09.8]} 29.
Ra5 {[%clk 0:00:25.3]} 29... Nd7 {[%clk 0:00:53.7]} 30. Rb5 {[%clk 0:00:25.8]}
30... Rd4 {[%clk 0:00:51.1]} 31. Bf3 {[%clk 0:00:22.5]} 31... Nef6 {[%clk
0:00:46.4]} 32. Bc6 {[%clk 0:00:22.3]} 32... Rd2 {[%clk 0:00:39.8]} 33. Bxd7
{[%clk 0:00:19.9]} 33... Nxd7 {[%clk 0:00:39.6]} 34. Kf3 {[%clk 0:00:15.9]}
34... Kg7 {[%clk 0:00:32.4]} 35. Kg2 {[%clk 0:00:10.5]} 35... Nf6 {[%clk
0:00:30.4]} 36. Rb4 {[%clk 0:00:07.7]} 36... Kg6 {[%clk 0:00:26.8]} 37. Kf1
{[%clk 0:00:07.8]} 37... Nd7 {[%clk 0:00:25.7]} 38. Ke1 {[%clk 0:00:08.1]} 38...
Rd6 {[%clk 0:00:24.6]} 39. Ke2 {[%clk 0:00:08.4]} 39... Nc5 {[%clk 0:00:19.2]}
40. Rb5 {[%clk 0:00:04.6]} 40... Ne4 {[%clk 0:00:18.9]} 41. Nc4 {[%clk
0:00:03.4]} 41... Rd4 {[%clk 0:00:19.6]} 42. Ne5+ {[%clk 0:00:03.6]} 42... Kf6
{[%clk 0:00:17.7]} 43. Ng4+ {[%clk 0:00:04]} 43... Kg7 {[%clk 0:00:15.1]} 44.
Ne3 {[%clk 0:00:04.4]} 44... Rd2+ {[%clk 0:00:14.5]} 45. Ke1 {[%clk 0:00:04.8]}
45... Rxf2 {[%clk 0:00:11.1]} 46. Rb4 {[%clk 0:00:05.4]} 46... Rxh2 {[%clk
0:00:11.4]} 47. Rxe4 {[%clk 0:00:05.6]} 47... Rxb2 {[%clk 0:00:12.1]} 48. Kf1
{[%clk 0:00:05.7]} 48... Kg6 {[%clk 0:00:12.3]} 49. g4 {[%clk 0:00:03.3]} 49...
h5 {[%clk 0:00:12.3]} 50. gxh5+ {[%clk 0:00:03.4]} 50... Kxh5 {[%clk 0:00:13.2]}
51. Ng2 {[%clk 0:00:03.4]} 51... Kg6 {[%clk 0:00:12.7]} 52. Kg1 {[%clk 0:00:03]}
52... Rb6 {[%clk 0:00:13.3]} 53. Re2 {[%clk 0:00:03.1]} 53... f5 {[%clk
0:00:13.8]} 54. Kf2 {[%clk 0:00:03.7]} 54... Kf6 {[%clk 0:00:13.1]} 55. Rd2
{[%clk 0:00:03.6]} 55... Rb3 {[%clk 0:00:13.5]} 56. Ne3 {[%clk 0:00:03.2]} 56...
g4 {[%clk 0:00:12.5]} 57. Rd8 {[%clk 0:00:02.5]} 57... Ke5 {[%clk 0:00:10.3]}
58. Nc4+ {[%clk 0:00:02]} 58... Kf4 {[%clk 0:00:10.5]} 59. Rd4+ {[%clk
0:00:02.3]} 59... Kg5 {[%clk 0:00:11.1]} 60. Ne5 {[%clk 0:00:02.9]} 60... Rb2+
{[%clk 0:00:10.4]} 61. Kg1 {[%clk 0:00:03.2]} 61... f4 {[%clk 0:00:05.9]} 62.
Nf7+ {[%clk 0:00:03.2]} 62... Kf5 {[%clk 0:00:06.5]} 63. Nh6+ {[%clk 0:00:03.5]}
63... Ke5 {[%clk 0:00:07]} 64. Rc4 {[%clk 0:00:03.4]} 64... g3 {[%clk
0:00:07.4]} 65. Ng4+ {[%clk 0:00:03.6]} 65... Kf5 {[%clk 0:00:08]} 66. Nh6+
{[%clk 0:00:03.9]} 66... Kg5 {[%clk 0:00:08.3]} 67. Nf7+ {[%clk 0:00:04.6]}
67... Kg4 {[%clk 0:00:08.9]} 68. Ne5+ {[%clk 0:00:04.5]} 68... Kf5 {[%clk
0:00:09.2]} 69. Nd3 {[%clk 0:00:03.2]} 69... Rb1+ {[%clk 0:00:09.2]} 70. Kg2
{[%clk 0:00:03.7]} 70... e5 {[%clk 0:00:06.4]} 71. Rc5 {[%clk 0:00:04.3]} 71...
Ke4 {[%clk 0:00:05.4]} 72. Nxe5 {[%clk 0:00:04.3]} 72... Rb2+ {[%clk 0:00:05.9]}
73. Kg1 {[%clk 0:00:04.2]} 73... Ra2 {[%clk 0:00:03.9]} 74. Ng6 {[%clk
0:00:03.8]} 74... f3 {[%clk 0:00:03.8]} 75. Rc4+ {[%clk 0:00:04.4]} 75... Kd3
{[%clk 0:00:02.6]} 76. Rc1 {[%clk 0:00:04.7]} 76... Ke3 {[%clk 0:00:02.3]} 77.
Nh4 {[%clk 0:00:04.3]} 77... Rh2 {[%clk 0:00:02.5]} 78. Nf5+ {[%clk 0:00:04.1]}
78... Kf4 {[%clk 0:00:02.9]} 79. Nxg3 {[%clk 0:00:04]} 79... Kxg3 {[%clk
0:00:03.8]} 80. Rc3 {[%clk 0:00:03.3]} 80... Ra2 {[%clk 0:00:03.7]} 81. Rc1
{[%clk 0:00:03.4]} 81... Rg2+ {[%clk 0:00:04.4]} 82. Kf1 {[%clk 0:00:03.5]}
82... Rh2 {[%clk 0:00:05.1]} 83. Rc3 {[%clk 0:00:02.2]} 83... Rh1# {[%clk
0:00:05.4]} 0-1

[Event "Late-Titled-Tuesday-Blitz-January-30-2024"]
[Site "Chess.com"]
[Date "2024.01.30"]
[Round "3"]
[White "The_Machine04"]
[Black "ozen_metehan"]
[Result "0-1"]
[WhiteElo "2715"]
[BlackElo "2472"]
[TimeControl "180+1"]
[EndTime "14:30:50 PST"]
[Termination "ozen_metehan won by checkmate"]

1. d4 {[%clk 0:03:00.9]} 1... Nf6 {[%clk 0:02:55.7]} 2. Nf3 {[%clk 0:02:59.7]}
2... e6 {[%clk 0:02:55.8]} 3. Nbd2 {[%clk 0:02:59.8]} 3... c5 {[%clk 0:02:55.2]}
4. e3 {[%clk 0:03:00.1]} 4... b6 {[%clk 0:02:54.8]} 5. c3 {[%clk 0:03:00.2]}
5... Bb7 {[%clk 0:02:55.2]} 6. Bd3 {[%clk 0:03:00.2]} 6... cxd4 {[%clk
0:02:53.5]} 7. exd4 {[%clk 0:03:00.2]} 7... Be7 {[%clk 0:02:54.1]} 8. O-O {[%clk
0:03:00.5]} 8... O-O {[%clk 0:02:54.6]} 9. Qe2 {[%clk 0:03:01.1]} 9... d6 {[%clk
0:02:54.9]} 10. Re1 {[%clk 0:03:01.1]} 10... Nbd7 {[%clk 0:02:54.1]} 11. Ne4
{[%clk 0:03:01.4]} 11... Nxe4 {[%clk 0:02:53]} 12. Bxe4 {[%clk 0:03:02.3]} 12...
Bxe4 {[%clk 0:02:53.1]} 13. Qxe4 {[%clk 0:03:03.2]} 13... Nf6 {[%clk 0:02:53.6]}
14. Qe2 {[%clk 0:03:03.8]} 14... Qc7 {[%clk 0:02:53.2]} 15. a4 {[%clk 0:03:04]}
15... a6 {[%clk 0:02:53]} 16. Bf4 {[%clk 0:03:03.7]} 16... Qb7 {[%clk 0:02:53]}
17. Bg5 {[%clk 0:02:58.9]} 17... Nd5 {[%clk 0:02:47]} 18. Bxe7 {[%clk
0:02:58.7]} 18... Qxe7 {[%clk 0:02:47.9]} 19. Qe4 {[%clk 0:02:55.7]} 19... Nf6
{[%clk 0:02:45.1]} 20. Qh4 {[%clk 0:02:45.5]} 20... Qb7 {[%clk 0:02:42.5]} 21.
Re3 {[%clk 0:02:40]} 21... b5 {[%clk 0:02:42.6]} 22. a5 {[%clk 0:02:16.5]} 22...
Rac8 {[%clk 0:02:35.8]} 23. Ng5 {[%clk 0:02:10.7]} 23... h6 {[%clk 0:02:29.9]}
24. Nf3 {[%clk 0:02:05.7]} 24... b4 {[%clk 0:02:27.2]} 25. Qg3 {[%clk
0:01:48.9]} 25... bxc3 {[%clk 0:02:23.1]} 26. bxc3 {[%clk 0:01:48.8]} 26... Qb2
{[%clk 0:02:10.5]} 27. Rae1 {[%clk 0:01:47.5]} 27... Rfd8 {[%clk 0:02:03.4]} 28.
h3 {[%clk 0:01:20.6]} 28... Rxc3 {[%clk 0:01:56.3]} 29. Nh2 {[%clk 0:01:18.2]}
29... Rxe3 {[%clk 0:01:52.6]} 30. fxe3 {[%clk 0:01:17.3]} 30... Ne4 {[%clk
0:01:41.5]} 31. Qf4 {[%clk 0:01:14.7]} 31... d5 {[%clk 0:01:39]} 32. Rf1 {[%clk
0:01:11.2]} 32... Rf8 {[%clk 0:01:22]} 33. Ng4 {[%clk 0:01:06.1]} 33... Qb8
{[%clk 0:01:09.2]} 34. Ne5 {[%clk 0:00:51.6]} 34... f6 {[%clk 0:01:07.1]} 35.
Ng6 {[%clk 0:00:51.9]} 35... Qxf4 {[%clk 0:01:05.8]} 36. Nxf4 {[%clk 0:00:52.8]}
36... Kf7 {[%clk 0:01:05.2]} 37. Rc1 {[%clk 0:00:50.6]} 37... Re8 {[%clk
0:00:49.3]} 38. Rc6 {[%clk 0:00:48.4]} 38... g5 {[%clk 0:00:49]} 39. Nd3 {[%clk
0:00:45.6]} 39... Ra8 {[%clk 0:00:48.3]} 40. Nb4 {[%clk 0:00:35.4]} 40... Nd2
{[%clk 0:00:41.6]} 41. Nxa6 {[%clk 0:00:28.3]} 41... Nc4 {[%clk 0:00:40.1]} 42.
Rc7+ {[%clk 0:00:16]} 42... Kg6 {[%clk 0:00:37.4]} 43. Nc5 {[%clk 0:00:16.4]}
43... Rxa5 {[%clk 0:00:33.7]} 44. Nxe6 {[%clk 0:00:16.2]} 44... Kf5 {[%clk
0:00:14.5]} 45. Nc5 {[%clk 0:00:15.8]} 45... Nxe3 {[%clk 0:00:12.6]} 46. Kf2
{[%clk 0:00:14.9]} 46... Nc4 {[%clk 0:00:12.2]} 47. Re7 {[%clk 0:00:10.2]} 47...
Ra2+ {[%clk 0:00:11.4]} 48. Kf3 {[%clk 0:00:07.6]} 48... Ra3+ {[%clk 0:00:09.8]}
49. Kf2 {[%clk 0:00:07.6]} 49... Ra2+ {[%clk 0:00:10]} 50. Kg1 {[%clk
0:00:07.9]} 50... Rd2 {[%clk 0:00:09.4]} 51. Ne6 {[%clk 0:00:05.4]} 51... h5
{[%clk 0:00:06.2]} 52. Ng7+ {[%clk 0:00:03.8]} 52... Kg6 {[%clk 0:00:06.5]} 53.
g4 {[%clk 0:00:01.8]} 53... hxg4 {[%clk 0:00:05.8]} 54. hxg4 {[%clk 0:00:02.7]}
54... Rxd4 {[%clk 0:00:05.5]} 55. Kf2 {[%clk 0:00:03.3]} 55... Rxg4 {[%clk
0:00:04.8]} 56. Ne6 {[%clk 0:00:04]} 56... Re4 {[%clk 0:00:04.3]} 57. Nf8+
{[%clk 0:00:04.5]} 57... Kf5 {[%clk 0:00:04.6]} 58. Rd7 {[%clk 0:00:05.3]} 58...
d4 {[%clk 0:00:01.9]} 59. Rd5+ {[%clk 0:00:04.1]} 59... Ne5 {[%clk 0:00:02.8]}
60. Nh7 {[%clk 0:00:03.1]} 60... g4 {[%clk 0:00:03]} 61. Rd6 {[%clk 0:00:03.6]}
61... Rf4+ {[%clk 0:00:02.5]} 62. Kg2 {[%clk 0:00:04.2]} 62... Kg6 {[%clk
0:00:02.9]} 63. Nf8+ {[%clk 0:00:03.9]} 63... Kf7 {[%clk 0:00:03.5]} 64. Nd7
{[%clk 0:00:04.1]} 64... Nxd7 {[%clk 0:00:03.5]} 65. Rxd7+ {[%clk 0:00:05]}
65... Ke6 {[%clk 0:00:04.2]} 66. Rd8 {[%clk 0:00:05.3]} 66... Ke5 {[%clk
0:00:04.2]} 67. Re8+ {[%clk 0:00:05.6]} 67... Kf5 {[%clk 0:00:04.7]} 68. Kg3
{[%clk 0:00:06.5]} 68... Rf3+ {[%clk 0:00:04.8]} 69. Kg2 {[%clk 0:00:07.1]}
69... d3 {[%clk 0:00:04.7]} 70. Rd8 {[%clk 0:00:07.8]} 70... Kf4 {[%clk
0:00:04.4]} 71. Rd4+ {[%clk 0:00:07.5]} 71... Kg5 {[%clk 0:00:04.9]} 72. Rd5+
{[%clk 0:00:07.9]} 72... f5 {[%clk 0:00:05.5]} 73. Rd8 {[%clk 0:00:08.8]} 73...
Kf4 {[%clk 0:00:05.6]} 74. Rd4+ {[%clk 0:00:08.7]} 74... Ke5 {[%clk 0:00:06]}
75. Rd8 {[%clk 0:00:09.6]} 75... Re3 {[%clk 0:00:05.9]} 76. Re8+ {[%clk
0:00:08.8]} 76... Kf4 {[%clk 0:00:06.3]} 77. Rd8 {[%clk 0:00:09.1]} 77... Re2+
{[%clk 0:00:06.6]} 78. Kf1 {[%clk 0:00:09.5]} 78... Re3 {[%clk 0:00:05.6]} 79.
Kf2 {[%clk 0:00:09.8]} 79... Rf3+ {[%clk 0:00:05.9]} 80. Kg2 {[%clk 0:00:10.2]}
80... g3 {[%clk 0:00:05.7]} 81. Rd4+ {[%clk 0:00:09.8]} 81... Ke3 {[%clk
0:00:04.9]} 82. Rd8 {[%clk 0:00:06.7]} 82... Ke4 {[%clk 0:00:03.1]} 83. Re8+
{[%clk 0:00:06.6]} 83... Kf4 {[%clk 0:00:03.6]} 84. Rd8 {[%clk 0:00:07.2]} 84...
Rf2+ {[%clk 0:00:04]} 85. Kg1 {[%clk 0:00:07.9]} 85... d2 {[%clk 0:00:04.3]} 86.
Rd3 {[%clk 0:00:06.6]} 86... Re2 {[%clk 0:00:03.7]} 87. Kf1 {[%clk 0:00:06.4]}
87... Re1+ {[%clk 0:00:04.1]} 88. Kg2 {[%clk 0:00:05.7]} 88... d1=Q {[%clk
0:00:05]} 89. Rxd1 {[%clk 0:00:06.1]} 89... Rxd1 {[%clk 0:00:05.6]} 90. Kh3
{[%clk 0:00:07]} 90... Rd2 {[%clk 0:00:06.3]} 91. Kh4 {[%clk 0:00:07.3]} 91...
Rh2# {[%clk 0:00:06.9]} 0-1